bitfinex-derivatives/quotes_SOLF0:USTF0_20260108
["timestamp","ask_amount","ask_price","bid_price","bid_amount"]
[1767862250575,5.61788797,135.42,135.38,6.6564]
[1767862250775,6.95727761,135.44,135.38,6.6564]
[1767862250976,5.61788797,135.43,135.38,6.6564]
[1767862251175,5.61788797,135.42,135.38,6.6564]
[1767862251384,6.95727761,135.44,135.38,6.6564]
[1767862251573,5.61819481,135.43,135.38,6.6564]
[1767862251778,5.61819481,135.42,135.38,6.6564]
[1767862251979,6.95727761,135.44,135.38,6.6564]
[1767862252175,5.61818742,135.43,135.38,6.6564]
[1767862252381,5.61818742,135.42,135.38,6.6564]
[1767862252580,5.61818742,135.41,135.38,6.6564]
[1767862252781,6.95727761,135.44,135.38,6.6564]
[1767862252985,5.61844985,135.43,135.38,6.6564]
[1767862253185,5.61844985,135.42,135.38,6.6564]
[1767862253386,5.61844985,135.41,135.38,6.6564]
[1767862253578,6.95727761,135.44,135.38,6.6564]
[1767862253778,5.61870909,135.43,135.38,6.6564]
[1767862253979,5.61870909,135.42,135.39,6.6559]
[1767862254186,0.30367761,135.44,135.39,6.6559]
[1767862265800,0.30826441,135.48,135.39,103.5367]
[1767862266302,5.85473479,135.47,135.38,190.8575]
[1767862266590,5.54647038,135.46,135.38,190.8575]
[1767862266801,5.54647038,135.45,135.41,6.6548]
[1767862266999,5.54647038,135.44,135.41,6.6548]
[1767862267300,0.30826441,135.47,135.41,6.6548]
[1767862267501,5.54629983,135.46,135.41,6.6548]
[1767862267697,5.54629983,135.45,135.41,6.6548]
[1767862267904,5.54629983,135.44,135.41,6.6548]
[1767862268194,6.96026441,135.47,135.41,6.6548]
[1767862268395,5.54637668,135.46,135.41,6.6548]
[1767862268595,5.54637668,135.45,135.41,6.6548]
[1767862268896,5.54637668,135.44,135.41,6.6548]
[1767862269098,6.96026441,135.47,135.41,6.6548]
[1767862269292,5.54748824,135.46,135.41,6.6548]
[1767862269597,5.54748824,135.45,135.41,6.6548]
[1767862269896,5.54748824,135.44,135.41,6.6548]
[1767862270093,6.96026441,135.47,135.41,6.6548]
[1767862270404,5.54698865,135.46,135.41,6.6548]
[1767862270603,5.54698865,135.45,135.41,6.6548]
[1767862270797,5.54698865,135.44,135.41,6.6548]
[1767862270993,6.96026441,135.47,135.41,6.6548]
[1767862271194,5.54690647,135.46,135.41,6.6548]
[1767862271396,5.54690647,135.45,135.41,6.6548]
[1767862271597,5.54690647,135.44,135.41,6.6548]
[1767862271910,0.30826441,135.47,135.41,6.6548]
[1767862272096,5.54645711,135.46,135.41,6.6548]
[1767862272405,5.54645711,135.45,135.41,6.6548]
[1767862272600,5.54645711,135.44,135.41,6.6548]
[1767862272795,0.30826441,135.47,135.41,6.6548]
[1767862273012,5.5460457,135.46,135.42,6.6544]
[1767862273305,4.57e-05,135.45,135.42,6.6544]
[1767862273500,0.30826441,135.47,135.42,6.6544]
[1767862285218,5.46907799,135.46,135.42,6.6544]
[1767862285417,5.46907799,135.45,135.42,6.6544]
[1767862285614,0.30826441,135.47,135.42,6.6544]
[1767862285813,5.46907789,135.46,135.42,6.6544]
[1767862286014,5.7773423,135.45,135.4,6.6554]
[1767862286215,5.46903751,135.44,135.4,6.6554]
[1767862286519,0.30826441,135.45,135.4,6.6554]
[1767862286738,5.46897765,135.44,135.4,6.6554]
[1767862286910,0.30826441,135.49,135.4,6.6554]
[1767862287112,0.30826441,135.47,135.4,6.6554]
[1767862287409,5.46896839,135.46,135.4,6.6554]
[1767862287609,5.46896839,135.45,135.4,6.6554]
[1767862287809,5.46896839,135.44,135.4,6.6554]
[1767862288010,6.96026441,135.47,135.4,6.6554]
[1767862288205,5.77720015,135.46,135.4,6.6554]
[1767862288412,5.46893574,135.45,135.4,6.6554]
[1767862288613,5.46893574,135.44,135.4,6.6554]
[1767862288814,0.30826441,135.46,135.4,6.6554]
[1767862289015,5.46896958,135.45,135.4,6.6554]
[1767862289215,5.46896958,135.44,135.4,6.6554]
[1767862289417,0.30826441,135.46,135.4,6.6554]
[1767862289622,5.4697479,135.45,135.4,6.6554]
[1767862289923,5.4697479,135.44,135.4,6.6554]
[1767862290114,0.30826441,135.46,135.4,6.6554]
[1767862290315,5.47146541,135.45,135.4,6.6554]
[1767862290517,5.47146541,135.44,135.4,6.6554]
[1767862290719,0.30826441,135.46,135.4,6.6554]
[1767862290922,5.4715181,135.45,135.4,6.6554]
[1767862291110,5.4715181,135.44,135.4,6.6554]
[1767862291316,5.4715181,135.44,135.38,87.32]
[1767862291623,5.77978251,135.44,135.39,6.6559]
[1767862291815,5.4715181,135.43,135.39,6.6559]
[1767862292017,0.30826441,135.44,135.39,6.6559]
[1767862292220,5.47120883,135.43,135.39,6.6559]
[1767862292419,0.31112971,135.46,135.4,6.6553]
[1767862294024,0.31112971,135.46,135.41,6.6548]
[1767862294228,0.31112971,135.48,135.39,3.26161685]
[1767862294622,0.31112971,135.5,135.4,103.5289]
[1767862294922,0.31112971,135.5,135.41,3.26161685]
[1767862295517,6.96192971,135.5,135.43,6.6537]
[1767862297526,0.31112971,135.49,135.43,6.6537]
[1767862297716,0.31112971,135.49,135.4,194.09051685]
[1767862299229,6.96212971,135.49,135.43,6.6538]
[1767862299430,0.31112971,135.48,135.4,90.56161685]
[1767862300532,0.31112971,135.48,135.42,6.6544]
[1767862301133,6.96272971,135.48,135.42,6.6544]
[1767862301936,6.96272971,135.48,135.41,6.6549]
[1767862302229,3.26161685,135.49,135.39,87.3]
[1767862302230,6.96322971,135.47,135.39,87.3]
[1767862303431,6.96322971,135.47,135.4,6.655]
[1767862304332,5.85039876,135.46,135.4,6.655]
[1767862304533,5.85039876,135.45,135.4,6.655]
[1767862304730,5.85039876,135.44,135.4,6.655]
[1767862305030,6.96322971,135.47,135.4,6.655]
[1767862305235,0.31112971,135.47,135.41,6.6546]
[1767862308731,0.31112971,135.47,135.42,6.6544]
[1767862312540,0.31112971,135.47,135.41,6.6549]
[1767862312731,0.31112971,135.46,135.37,106.81091685]
[1767862312931,0.31112971,135.46,135.37,194.11091685]
[1767862313133,0.31112971,135.44,135.38,6.6559]
[1767862313334,0.31112971,135.44,135.36,203.23089537]
[1767862313535,0.31112971,135.44,135.36,115.93089537]
[1767862313733,0.31112971,135.44,135.36,203.23089537]
[1767862314538,0.31112971,135.44,135.39,6.6558]
[1767862316843,5.85269504,135.43,135.39,6.6558]
[1767862317046,5.85269504,135.42,135.37,6.6565]
[1767862317244,5.85269504,135.41,135.37,6.6565]
[1767862317443,9.504e-05,135.4,135.37,6.6565]
[1767862317743,0.31112971,135.44,135.37,6.6565]
[1767862318133,0.31112971,135.43,135.37,6.6565]
[1767862320141,0.31112971,135.42,135.36,6.6574]
[1767862320441,0.31112971,135.41,135.31,87.3]
[1767862320645,3.57274656,135.4,135.31,87.3]
[1767862320845,0.31112971,135.39,135.32,6.659]
[1767862321448,0.31112971,135.39,135.33,6.6587]
[1767862322749,0.31768922,135.38,135.31,6.6594]
[1767862323244,3.57930607,135.38,135.31,6.6594]
[1767862323445,0.31768922,135.37,135.29,6.6604]
[1767862323651,0.31768922,135.37,135.28,87.3]
[1767862324542,0.31768922,135.37,135.29,6.6604]
[1767862324739,3.57930607,135.36,135.29,6.6604]
[1767862324944,0.31768922,135.36,135.29,6.6604]
[1767862325144,0.31768922,135.36,135.3,6.6603]
[1767862325451,6.97458922,135.38,135.28,90.56161685]
[1767862326648,0.31523207,135.37,135.31,6.6598]
[1767862326843,0.31523207,135.36,135.26,103.6352]
[1767862327050,0.31523207,135.36,135.27,90.58161685]
[1767862327252,0.31523207,135.36,135.27,87.32]
[1767862328342,6.658,135.35,135.27,87.32]
[1767862329654,6.658,135.35,135.28,6.6612]
[1767862330661,6.97323207,135.35,135.28,6.6612]
[1767862330853,0.31523207,135.35,135.28,6.6612]
[1767862332658,0.31523207,135.35,135.29,6.6608]
[1767862332858,0.31523207,135.37,135.28,3.26161685]
[1767862334060,0.31523207,135.36,135.25,3.26161685]
[1767862334260,0.31523207,135.34,135.25,90.60161685]
[1767862335259,6.97373207,135.34,135.27,6.6615]
[1767862335459,0.31523207,135.33,135.27,6.6615]
[1767862336357,0.31523207,135.32,135.24,90.62161685]
[1767862336558,0.31523207,135.32,135.24,87.36]
[1767862336749,0.31523207,135.32,135.24,90.62161685]
[1767862337348,0.31523207,135.32,135.24,87.36]
[1767862337559,0.31523207,135.32,135.27,6.6618]
[1767862339360,0.31523207,135.31,135.22,19.25943367]
[1767862339665,3.26161685,135.32,135.22,19.25943367]
[1767862339666,3.57684892,135.32,135.23,106.92041685]
[1767862339976,0.31523207,135.32,135.23,106.92041685]
[1767862340552,0.31523207,135.32,135.24,103.6512]
[1767862340766,6.97403207,135.34,135.25,3.26161685]
[1767862341558,6.97403207,135.34,135.28,6.6612]
[1767862342259,6.6589,135.33,135.26,6.6619]
[1767862343064,6.97413207,135.33,135.26,6.6619]
[1767862344171,0.31523207,135.32,135.24,87.36]
[1767862344368,3.57684892,135.32,135.24,87.36]
[1767862344572,0.31523207,135.31,135.23,3.26161685]
[1767862344874,6.97533207,135.31,135.23,9.92491685]
[1767862345377,0.31523207,135.31,135.23,6.6633]
[1767862346072,6.97513207,135.31,135.22,19.25943367]
[1767862346270,0.31523207,135.31,135.22,19.25943367]
[1767862346866,0.31523207,135.31,135.25,6.6628]
[1767862353382,0.31740107,135.3,135.22,15.99781682]
[1767862353872,0.31740107,135.32,135.22,15.99781682]
[1767862354077,5.71784582,135.31,135.22,15.99781682]
[1767862354277,0.31740107,135.31,135.22,15.99781682]
[1767862354483,0.31740107,135.34,135.23,103.6595]
[1767862354683,5.72021044,135.33,135.23,108.76738211]
[1767862354883,0.31740107,135.34,135.23,108.76738211]
[1767862355084,5.71979496,135.33,135.23,108.76738211]
[1767862355285,0.31740107,135.34,135.26,6.6618]
[1767862355488,0.31740107,135.32,135.22,15.99781682]
[1767862355688,103.5713,135.35,135.22,15.99781682]
[1767862355689,6.03978133,135.31,135.22,15.99781682]
[1767862355985,0.31740107,135.31,135.22,15.99781682]
[1767862356291,6.6604,135.3,135.23,6.6638]
[1767862356888,0.31740107,135.31,135.22,15.99781682]
[1767862357094,0.31740107,135.33,135.22,119.66201682]
[1767862357290,6.0422065,135.32,135.22,119.66201682]
[1767862357491,5.72480543,135.31,135.22,119.66201682]
[1767862358496,12.7021065,135.31,135.25,6.6626]
[1767862358701,6.97730107,135.31,135.22,15.99781682]
[1767862359294,5.73181218,135.3,135.22,15.99781682]
[1767862359495,6.97730107,135.31,135.22,15.99781682]
[1767862359690,12.70715909,135.3,135.24,6.6633]
[1767862359896,6.97780107,135.3,135.24,6.6633]
[1767862361199,5.73621643,135.29,135.24,6.6633]
[1767862361396,6.97780107,135.3,135.24,6.6633]
[1767862361594,5.73628789,135.29,135.24,6.6633]
[1767862361794,6.97780107,135.3,135.24,6.6633]
[1767862361995,5.73628789,135.29,135.24,6.6633]
[1767862362197,6.97780107,135.3,135.24,6.6633]
[1767862362391,5.74010022,135.29,135.24,6.6633]
[1767862362594,6.97780107,135.3,135.24,6.6633]
[1767862362798,5.7401785,135.29,135.24,6.6633]
[1767862362997,6.97780107,135.3,135.24,6.6633]
[1767862363200,5.74018607,135.29,135.24,6.6633]
[1767862363405,6.97780107,135.3,135.24,6.6633]
[1767862363594,5.7448572,135.29,135.24,6.6633]
[1767862363790,6.97780107,135.3,135.24,6.6633]
[1767862363990,5.74600426,135.29,135.24,6.6633]
[1767862364195,5.74585062,135.28,135.22,22.66181682]
[1767862364390,0.31740107,135.29,135.22,22.66181682]
[1767862364592,6.06796439,135.28,135.22,15.99781682]
[1767862364894,5.75056332,135.27,135.22,15.99781682]
[1767862367593,5.75056332,135.26,135.22,15.99781682]
[1767862367904,103.5968,135.32,135.22,15.99781682]
[1767862367905,0.31740107,135.3,135.22,15.99781682]
[1767862368092,0.31740107,135.32,135.22,15.99781682]
[1767862368292,5.41917625,135.31,135.22,15.99781682]
[1767862368499,0.31740107,135.32,135.22,119.65891682]
[1767862368698,5.42088923,135.31,135.22,119.65891682]
[1767862369006,0.31740107,135.32,135.22,119.65891682]
[1767862369206,0.31740107,135.32,135.26,6.6621]
[1767862369995,0.31740107,135.34,135.26,6.6621]
[1767862370202,5.42285554,135.33,135.27,6.6616]
[1767862370398,0.31740107,135.34,135.27,6.6616]
[1767862370600,5.42415413,135.33,135.27,6.6616]
[1767862370797,0.31740107,135.34,135.27,6.6616]
[1767862370999,5.74154127,135.33,135.27,6.6616]
[1767862371198,0.31740107,135.33,135.27,6.6616]
[1767862372709,6.97630107,135.33,135.24,87.4]
[1767862373614,6.97630107,135.33,135.26,6.6622]
[1767862375206,5.42768137,135.32,135.26,6.6622]
[1767862375402,6.97630107,135.33,135.26,6.6622]
[1767862375608,5.42768137,135.32,135.26,6.6622]
[1767862375808,6.97630107,135.33,135.26,6.6622]
[1767862376010,5.42768137,135.32,135.26,6.6622]
[1767862376323,6.97570107,135.35,135.27,6.6618]
[1767862376609,5.43073146,135.34,135.25,87.4]
[1767862376798,5.43073146,135.33,135.25,87.4]
[1767862377004,6.97570107,135.35,135.25,87.4]
[1767862377205,5.41596212,135.34,135.25,87.4]
[1767862377509,6.97570107,135.35,135.25,87.4]
[1767862377700,5.4176811,135.34,135.28,6.6612]
[1767862377905,6.97570107,135.35,135.28,6.6612]
[1767862378110,5.41776194,135.34,135.28,6.6612]
[1767862378412,5.41776194,135.33,135.28,6.6612]
[1767862378601,6.97570107,135.35,135.28,6.6612]
[1767862378805,5.41987411,135.34,135.28,6.6612]
[1767862379005,5.41987411,135.33,135.28,6.6612]
[1767862379199,6.97570107,135.35,135.28,6.6612]
[1767862379413,5.42038927,135.34,135.28,6.6612]
[1767862379615,5.42038927,135.33,135.28,6.6612]
[1767862379914,5.82716871,135.32,135.28,6.6612]
[1767862380108,5.82716871,135.31,135.28,6.6612]
[1767862380415,6.97570107,135.35,135.28,6.6612]
[1767862380618,5.42436738,135.34,135.28,6.6612]
[1767862380809,6.97570107,135.35,135.28,6.6612]
[1767862381010,87.4,135.36,135.26,87.4]
[1767862381011,6.97470107,135.37,135.26,196.14108211]
[1767862381210,5.42484475,135.36,135.27,87.4]
[1767862381412,6.97470107,135.37,135.27,87.4]
[1767862381920,0.31740107,135.36,135.27,87.4]
[1767862382713,0.31740107,135.36,135.3,6.6603]
[1767862385826,6.97480107,135.36,135.28,6.6609]
[1767862387024,6.96334169,135.35,135.28,6.6609]
[1767862387227,0.30534169,135.34,135.27,87.4]
[1767862387427,0.30534169,135.34,135.26,6.6619]
[1767862388527,6.96394169,135.34,135.26,6.6619]
[1767862389833,6.96424169,135.33,135.24,94.0429]
[1767862390029,6.96424169,135.33,135.24,87.38]
[1767862390722,6.96484169,135.32,135.24,87.38]
[1767862391332,6.96484169,135.32,135.24,94.0433]
[1767862392226,5.73953526,135.31,135.24,94.0433]
[1767862392424,5.73953526,135.3,135.25,6.6628]
[1767862392624,6.96484169,135.32,135.25,6.6628]
[1767862392824,5.73956957,135.31,135.25,6.6628]
[1767862393031,5.73956957,135.3,135.25,6.6628]
[1767862393230,6.96484169,135.32,135.25,6.6628]
[1767862393530,5.73925702,135.31,135.25,6.6628]
[1767862393726,5.73925702,135.3,135.25,6.6628]
[1767862393927,6.96484169,135.32,135.25,6.6628]
[1767862394227,5.73924137,135.31,135.25,6.6628]
[1767862394427,5.73924137,135.3,135.25,6.6628]
[1767862394722,0.30534169,135.31,135.25,6.6628]
[1767862394929,5.73664673,135.3,135.25,6.6628]
[1767862395226,0.30534169,135.31,135.25,6.6628]
[1767862395428,5.7371641,135.3,135.25,6.6628]
[1767862395630,0.30534169,135.31,135.25,6.6628]
[1767862395825,5.7371641,135.3,135.24,87.38]
[1767862396023,0.30534169,135.31,135.24,87.38]
[1767862396223,6.04333199,135.3,135.22,21.10569893]
[1767862396418,5.73766377,135.29,135.22,15.99781682]
[1767862396626,5.73766377,135.28,135.22,15.99781682]
[1767862396826,0.30534169,135.3,135.22,15.99781682]
[1767862397036,5.73725077,135.29,135.22,15.99781682]
[1767862397234,5.73725077,135.28,135.22,15.99781682]
[1767862397436,0.30534169,135.3,135.22,15.99781682]
[1767862397634,5.73718194,135.29,135.24,6.6633]
[1767862397834,0.30534169,135.3,135.24,6.6633]
[1767862398130,5.69909322,135.29,135.24,6.6633]
[1767862398334,0.30534169,135.3,135.24,6.6633]
[1767862398530,5.69900268,135.29,135.23,6.6637]
[1767862398738,6.96584169,135.3,135.22,15.99781682]
[1767862399035,5.69898608,135.29,135.22,15.99781682]
[1767862399238,0.30534169,135.3,135.22,15.99781682]
[1767862399434,5.69895162,135.29,135.22,15.99781682]
[1767862399634,6.96584169,135.3,135.23,6.6638]
[1767862399837,0.30534169,135.28,135.22,15.99781682]
[1767862400040,6.00430023,135.27,135.22,15.99781682]
[1767862400235,5.69895854,135.26,135.22,15.99781682]
[1767862400434,0.30534169,135.27,135.22,15.99781682]
[1767862400636,5.69627228,135.26,135.22,15.99781682]
[1767862400835,0.30534169,135.27,135.22,15.99781682]
[1767862401031,5.6962798,135.26,135.22,15.99781682]
[1767862401232,5.6959961,135.25,135.22,15.03599867]
[1767862401428,0.30534169,135.29,135.22,15.03599867]
[1767862401634,0.30534169,135.27,135.22,15.03599867]
[1767862401833,5.69392848,135.26,135.22,15.03599867]
[1767862403540,0.30534169,135.25,135.22,2.90012876]
[1767862407045,6.96824169,135.25,135.22,2.90012876]
[1767862407246,0.30534169,135.24,135.16,6.6668]
[1767862407446,0.30534169,135.24,135.14,103.7273]
[1767862407647,0.30534169,135.24,135.14,108.83518211]
[1767862407849,0.30534169,135.24,135.17,6.6668]
[1767862409358,6.96864169,135.24,135.17,6.6668]
[1767862411550,0.30534169,135.27,135.16,108.82038211]
[1767862411749,0.30534169,135.29,135.16,108.82038211]
[1767862411949,5.98664664,135.28,135.16,108.82038211]
[1767862412151,6.6623,135.26,135.19,6.6654]
[1767862412748,6.6629,135.25,135.17,6.6663]
[1767862412957,0.32734918,135.26,135.17,94.0863]
[1767862413256,103.6249,135.28,135.17,87.42]
[1767862413257,6.99114918,135.23,135.17,87.42]
[1767862413458,6.6638,135.23,135.17,87.42]
[1767862413851,6.99054918,135.25,135.17,87.42]
[1767862414047,0.32734918,135.25,135.17,87.42]
[1767862414457,6.99014918,135.25,135.17,94.0866]
[1767862414664,6.99014918,135.25,135.17,97.35822874]
[1767862415058,0.32734918,135.25,135.17,97.35822874]
[1767862415264,0.32734918,135.25,135.18,6.6662]
[1767862415668,6.6623,135.27,135.19,3.27162874]
[1767862416163,6.98964918,135.27,135.19,3.27162874]
[1767862416350,6.98964918,135.27,135.17,87.42]
[1767862416550,6.98964918,135.27,135.19,6.6657]
[1767862417263,6.98984918,135.26,135.18,6.6662]
[1767862417459,0.32734918,135.25,135.18,6.6662]
[1767862417970,6.99024918,135.25,135.18,6.6662]
[1767862418863,3.27162874,135.26,135.16,6.6668]
[1767862418864,0.32734918,135.23,135.16,6.6668]
[1767862419168,0.32734918,135.23,135.14,3.27162874]
[1767862419365,0.32734918,135.21,135.09,103.7634]
[1767862419566,6.99274918,135.2,135.13,6.6687]
[1767862419762,10.26437792,135.2,135.13,6.6687]
[1767862419962,10.26437792,135.2,135.12,6.6692]
[1767862420158,10.26437792,135.2,135.1,3.27162874]
[1767862420363,0.32734918,135.19,135.11,3.27162874]
[1767862420564,6.99314918,135.19,135.11,6.6693]
[1767862421972,0.32734918,135.19,135.12,6.6691]
[1767862423169,0.32734918,135.19,135.13,6.6687]
[1767862423372,87.44,135.22,135.12,3.27162874]
[1767862423373,0.32734918,135.21,135.12,3.27162874]
[1767862423776,3.59897792,135.23,135.14,3.27162874]
[1767862423972,87.44,135.24,135.14,106.99692874]
[1767862424266,0.32734918,135.25,135.16,3.27162874]
[1767862424674,0.32734918,135.25,135.14,103.7253]
[1767862424974,0.32734918,135.25,135.16,3.27162874]
[1767862425569,6.99024918,135.25,135.17,6.6667]
[1767862426069,0.32734918,135.24,135.17,6.6667]
[1767862427773,6.37800892,135.23,135.18,6.6662]
[1767862427968,6.37800892,135.22,135.18,6.6662]
[1767862428169,3.59897792,135.26,135.18,6.6662]
[1767862428369,6.70526153,135.25,135.18,6.6662]
[1767862428576,6.37791235,135.24,135.18,6.6662]
[1767862428762,6.37791235,135.23,135.18,6.6662]
[1767862428967,6.37791235,135.22,135.18,6.6662]
[1767862429175,1.235e-05,135.21,135.18,6.6662]
[1767862429369,0.32734918,135.25,135.18,6.6662]
[1767862430172,0.32734918,135.25,135.19,6.6657]
[1767862431678,0.32734918,135.25,135.16,3.27162874]
[1767862431979,6.99024918,135.25,135.16,3.27162874]
[1767862432277,0.32734918,135.23,135.16,6.6669]
[1767862433071,3.27162874,135.24,135.16,6.6669]
[1767862433267,3.59897792,135.25,135.16,6.6669]
[1767862433482,3.59897792,135.25,135.17,6.6667]
[1767862434070,0.32734918,135.24,135.17,6.6667]
[1767862434268,0.32734918,135.24,135.15,106.98782874]
[1767862434473,0.32734918,135.26,135.17,3.27162874]
[1767862435577,0.32734918,135.26,135.19,6.6653]
[1767862437270,6.98974918,135.26,135.19,6.6653]
[1767862437465,6.6624,135.26,135.19,6.6653]
[1767862437670,0.32734918,135.25,135.19,6.6653]
[1767862438377,6.99014918,135.25,135.19,6.6653]
[1767862438775,6.99014918,135.25,135.18,6.6662]
[1767862439581,6.99064918,135.24,135.17,6.6667]
[1767862439877,0.32734918,135.24,135.13,194.44692874]
[1767862440471,0.32734918,135.24,135.15,3.27162874]
[1767862440673,103.5874,135.33,135.19,3.27162874]
[1767862440674,87.44,135.28,135.19,3.27162874]
[1767862440877,6.98924918,135.27,135.19,9.93692874]
[1767862441279,5.58941487,135.26,135.19,3.27162874]
[1767862441484,5.58941487,135.25,135.19,3.27162874]
[1767862441674,6.98924918,135.27,135.19,3.27162874]
[1767862441979,5.59224196,135.26,135.19,3.27162874]
[1767862442179,5.59224196,135.25,135.17,106.97292874]
[1767862442479,0.32734918,135.27,135.21,6.6647]
[1767862442782,5.59482489,135.26,135.19,3.27162874]
[1767862442987,3.57567219,135.29,135.19,3.27162874]
[1767862443178,5.59509688,135.28,135.19,3.27162874]
[1767862443479,5.59509688,135.27,135.19,3.27162874]
[1767862443680,5.59509688,135.26,135.22,6.6641]
[1767862443875,6.96494345,135.29,135.22,6.6641]
[1767862444074,6.96494345,135.29,135.22,6.664]
[1767862444075,5.59711402,135.28,135.22,6.664]
[1767862444275,5.59711402,135.27,135.22,6.664]
[1767862444477,0.30404345,135.29,135.22,6.664]
[1767862444675,5.59938865,135.28,135.22,6.664]
[1767862444876,5.59938865,135.27,135.22,6.664]
[1767862445085,0.30404345,135.29,135.22,6.664]
[1767862445283,5.59901524,135.28,135.22,6.664]
[1767862445474,5.59901524,135.27,135.22,6.664]
[1767862445675,0.30404345,135.29,135.22,6.664]
[1767862445975,5.59931362,135.28,135.22,6.664]
[1767862446178,5.59931362,135.27,135.22,6.664]
[1767862446374,0.30404345,135.29,135.22,6.664]
[1767862446576,5.59895106,135.28,135.22,6.664]
[1767862446775,5.59895106,135.27,135.22,6.664]
[1767862446976,0.30404345,135.29,135.22,6.664]
[1767862447177,5.59970129,135.28,135.22,6.664]
[1767862447377,5.59970129,135.27,135.22,6.664]
[1767862447685,6.96484345,135.29,135.22,6.664]
[1767862447980,5.59946089,135.28,135.22,6.664]
[1767862448177,5.59946089,135.27,135.22,6.664]
[1767862448376,0.30777148,135.28,135.22,6.664]
[1767862448578,5.59962436,135.27,135.22,6.664]
[1767862448781,0.30777148,135.28,135.22,6.664]
[1767862448782,5.59962207,135.26,135.22,6.664]
[1767862449086,0.30777148,135.28,135.22,6.664]
[1767862449277,5.59957294,135.27,135.22,6.664]
[1767862449477,5.59912352,135.26,135.22,6.664]
[1767862449670,0.30777148,135.28,135.22,6.664]
[1767862449873,5.59912352,135.27,135.22,6.664]
[1767862450081,0.30777148,135.28,135.22,6.664]
[1767862450386,5.59907809,135.27,135.22,6.664]
[1767862450575,0.30777148,135.28,135.22,6.664]
[1767862450774,5.59846464,135.27,135.22,6.664]
[1767862450986,0.30777148,135.28,135.22,6.664]
[1767862451186,5.59846464,135.27,135.22,6.664]
[1767862451390,0.30777148,135.28,135.22,6.664]
[1767862451583,5.59789532,135.27,135.22,6.664]
[1767862451883,0.30777148,135.28,135.19,106.95812874]
[1767862452091,5.59789532,135.27,135.23,6.6638]
[1767862452290,0.30777148,135.28,135.23,6.6638]
[1767862452491,5.59740895,135.27,135.24,6.6633]
[1767862452690,0.30777148,135.3,135.24,6.6633]
[1767862452995,5.59791924,135.29,135.24,6.6633]
[1767862453288,0.30777148,135.3,135.24,6.6633]
[1767862453488,5.59604894,135.29,135.24,6.6633]
[1767862453684,0.30777148,135.3,135.24,6.6633]
[1767862453886,5.59606204,135.29,135.24,6.6633]
[1767862454087,10.23890022,135.32,135.24,6.6633]
[1767862454284,5.90240728,135.31,135.24,6.6633]
[1767862454484,5.5946358,135.3,135.24,6.6633]
[1767862454688,5.5946358,135.29,135.24,6.6633]
[1767862454989,0.30777148,135.31,135.24,6.6633]
[1767862455191,5.59428865,135.3,135.24,6.6633]
[1767862455388,0.30777148,135.31,135.24,6.6633]
[1767862455589,5.59289566,135.3,135.21,87.44]
[1767862455789,5.59289566,135.29,135.22,106.93442874]
[1767862455985,0.30777148,135.31,135.22,106.93442874]
[1767862456177,5.59279107,135.3,135.22,106.93442874]
[1767862456380,0.30777148,135.31,135.22,106.93442874]
[1767862456687,5.59126362,135.3,135.25,6.6626]
[1767862456887,0.30777148,135.31,135.25,6.6626]
[1767862457092,5.59124631,135.3,135.25,6.6626]
[1767862457291,0.30777148,135.31,135.25,6.6626]
[1767862457484,5.58995104,135.3,135.25,6.6626]
[1767862457685,0.30777148,135.31,135.25,6.6626]
[1767862467907,6.96767148,135.31,135.25,6.6626]
[1767862472118,6.6594,135.32,135.26,6.6623]
[1767862476707,0.31747752,135.31,135.26,6.6623]
[1767862478419,0.31747752,135.31,135.23,87.4]
[1767862478420,0.31747752,135.32,135.23,191.0548]
[1767862479311,6.97687752,135.32,135.25,6.6625]
[1767862479513,5.69501385,135.31,135.25,6.6625]
[1767862479818,0.31747752,135.31,135.25,6.6625]
[1767862484414,5.38776136,135.3,135.25,6.6625]
[1767862484618,6.97767752,135.31,135.23,87.4]
[1767862484820,5.38776136,135.3,135.23,87.4]
[1767862485119,6.97767752,135.31,135.23,87.4]
[1767862485420,5.38806019,135.3,135.23,87.4]
[1767862485617,6.97767752,135.31,135.23,87.4]
[1767862485822,5.38806889,135.3,135.23,87.4]
[1767862486015,6.97767752,135.31,135.23,87.4]
[1767862486213,5.38804705,135.3,135.23,87.4]
[1767862486417,0.31747752,135.31,135.25,6.6628]
[1767862486621,5.38976032,135.3,135.25,6.6628]
[1767862486919,0.31747752,135.31,135.25,6.6628]
[1767862487218,5.38976032,135.3,135.25,6.6628]